Cogmind - Beta 13 @@@ ROGUE MODE // 2024.05.01 @ 07:33:44 Player: Wyvric Result: Self-destructed Performance ------------- Evolutions (2) 1000 Regions Visited (3) 600 Robots Destroyed (11) 55 Value Destroyed (351) 351 Prototype IDs (2) 40 Alien Tech Used (0) 0 Bonus (0) 0 TOTAL SCORE: 2046 Bonus ------- None Cogmind --------- Core Integrity 550/550 Matter 145/300 Energy 200/200 System Corruption 0% Temperature Cool (0) Movement Rolling (110) Location -8/Materials Parts ------- > --- POWER (1) -------- Subdweller Power Source > --- PROPULSION (4) --- Light Treads Spiked Treads Subdweller Monowheel Subdweller Monowheel > --- UTILITY (4) ------ Large Storage Unit Core Shielding Light Armor Plating > --- WEAPON (2) ------- Subdweller Machine Gun Subdweller Machine Gun > --- INVENTORY (15) --- Light Ion Engine Subdweller Power Source Light Treads Wheel Compact Wheel Cooling System Terrain Scanner Particle Charger Core Shielding Core Shielding Core Shielding Core Shielding Subdweller Beam Cannon Flamer Makeshift Spear Peak State ------------ > --- POWER ------------ Subdweller Power Source > --- PROPULSION ------- Light Treads Spiked Treads Subdweller Monowheel Subdweller Monowheel > --- UTILITY ---------- Large Storage Unit Core Shielding Light Armor Plating > --- WEAPON ----------- Subdweller Machine Gun Subdweller Machine Gun > --- INVENTORY -------- Light Ion Engine Subdweller Power Source Light Treads Wheel Compact Wheel Terrain Scanner Particle Charger Core Shielding Core Shielding Core Shielding Core Shielding Subdweller Beam Cannon Flamer Makeshift Spear [Rating: 18] Favorites ----------- Power Ion Engine Engine Ion Engine Propulsion Light Treads Treads Light Treads Leg Aluminum Leg Wheel Subdweller Monowheel Utility Core Shielding Device Improved Heat Sink Storage Large Storage Unit Protection Core Shielding Weapon EM Pulse Gun Energy Gun EM Pulse Gun Ballistic Gun Subdweller Machine Gun Piercing Weapon Makeshift Spear Build | -11 -10 -10 -8 ------- Run | Yrd Mat Sub Mat Slots Evolved 4 | . . . 4 Power . | . . . . Propulsion 2 | . . . 2 Utility 2 | . . . 2 Weapon . | . . . . Parts Attached 54 | 6 8 37 3 Power 2 | 1 . 1 . Engine 2 | 1 . 1 . Core . | . . . . Reactor . | . . . . Propulsion 27 | 2 2 21 2 Treads 12 | . 2 10 . Leg 2 | 2 . . . Wheel 13 | . . 11 2 Hover . | . . . . Flight . | . . . . Utility 10 | 1 4 4 1 Device 3 | . 1 2 . Storage 3 | 1 2 . . Processor . | . . . . Hackware . | . . . . Protection 4 | . 1 2 1 Artifact . | . . . . Weapon 15 | 2 2 11 . Energy Gun 4 | . 2 2 . Energy Cannon . | . . . . Ballistic Gun 9 | 2 . 7 . Ballistic Cannon . | . . . . Launcher . | . . . . Special Weapon . | . . . . Impact Weapon . | . . . . Slashing Weapon . | . . . . Piercing Weapon 2 | . . 2 . Special Melee Weapon . | . . . . Unidentified Prototypes . | . . . . Parts Lost 2 | . . 2 . Power . | . . . . Propulsion . | . . . . Utility . | . . . . Weapon 2 | . . 2 . Highest Loss Streak 1 | . . 1 . To Critical Strikes . | . . . . Average Slot Usage (%) 99 | . 99 99 83 Engine 13 | . 14 14 9 Treads 18 | . 24 9 18 Leg 2 | . 3 . . Wheel 6 | . . 18 13 Device 1 | . 1 1 . Storage 13 | . 14 14 9 Protection 12 | . 11 12 15 Energy Gun 12 | . 16 7 . Ballistic Gun 14 | . 11 19 18 Naked Turns . | . . . . Heaviest Build 37 | 12 30 34 37 Greatest Support 40 | 20 40 40 40 Greatest Overweight (x) 3 | . 1 3 . Average Overweight (x) . | . . . . Largest Inventory Capacity 15 | 8 15 15 15 Average Capacity 13 | 6 12 15 15 Most Carried 15 | 6 10 15 15 Average Carried 10 | 3 9 13 14 Final Capacity 15 | 8 15 15 15 Final Carried 15 | 6 9 15 15 Class Distribution -------------------- 97% | Mutant Dominant Class ---------------- Mutant | -10/Materials Mutant | -10/Subcaves Scavenger-Mutant | -8/Materials Resources | -11 -10 -10 -8 ----------- Run | Yrd Mat Sub Mat Matter Collected 630 | 175 201 254 . Remotely . | . . . . Salvage Created 409 | . 146 263 . Parts 24 | . 8 16 . Haulers Intercepted . | . . . . Recyclers Shooed . | . . . . Parts Field Recycled . | . . . . Retrieved Matter . | . . . . Parts Self-Destructed 3 | . . 3 . Prevented . | . . . . Kills | -11 -10 -10 -8 ------- Run | Yrd Mat Sub Mat Combat Hostiles Destroyed 11 | . 5 6 . Guns 11 | . 5 6 . Classes Destroyed 3 | . 2 1 . Swarmer 3 | . 3 . . Grunt 2 | . 2 . . Subdweller 6 | . . 6 . Best Kill Streak 3 | . 3 2 . Combat Bots Only 3 | . 3 2 . Max Kills in Single Turn 1 | . 1 1 . Gunslinging . | . . . . Exploded . | . . . . Melee . | . . . . Uniques/NPCs Destroyed . | . . . . Combat | -11 -10 -10 -8 -------- Run | Yrd Mat Sub Mat Hostile Shots Fired 63 | . 33 30 . Missed 13 | . 9 4 . Damage Taken 838 | . 275 563 . Core 220 | . 72 148 . Absorbed by Shields . | . . . . Redirected to Shielding 24 | . 4 20 . Core Remaining (%) 56 | 100 . 12 . Volleys Fired 39 | . 20 19 . Largest 2 | . 2 2 . Hottest 100 | . 80 100 . Shots Fired 75 | . 40 35 . Gun 75 | . 40 35 . Cannon . | . . . . Launcher . | . . . . Special . | . . . . Kinetic 51 | . 36 15 . Thermal . | . . . . Explosive . | . . . . Electromagnetic 24 | . 4 20 . Robot Hit Streak 25 | . 9 25 . Robot Miss Streak 4 | . 4 2 . Penetration Max . | . . . . Secondary Targets . | . . . . Shots Hit Robots 50 | . 22 28 . Core Hits 24 | . 11 13 . Critical Kills . | . . . . Critical Parts Destroyed 1 | . 1 . . Critical Strikes 1 | . 1 . . Destroy 1 | . 1 . . Melee Attacks 11 | . . 11 . Impact . | . . . . Slashing . | . . . . Piercing 11 | . . 11 . Sneak Attacks . | . . . . Combat Hostiles . | . . . . Follow-up Attacks . | . . . . Damage Inflicted 682 | . 200 482 . Guns 668 | . 197 471 . Cannons . | . . . . Explosions . | . . . . Melee . | . . . . Ramming 14 | . 3 11 . Kinetic 400 | . 150 250 . Thermal . | . . . . Explosive . | . . . . Electromagnetic 268 | . 47 221 . Impact . | . . . . Slashing . | . . . . Piercing . | . . . . Highest Corruption . | . . . . Average Corruption . | . . . . Corruption Purged . | . . . . Corruption Blocked . | . . . . Overload Shots . | . . . . Overflow Damage . | . . . . Projectiles . | . . . . Explosions . | . . . . Melee . | . . . . Knockbacks . | . . . . Impact . | . . . . Kinetic . | . . . . Secondary . | . . . . Self-Inflicted Damage . | . . . . Shots . | . . . . Rammed 4 | . 1 3 . Targets Rammed 4 | . 1 3 . Kicked . | . . . . Crushed . | . . . . Highest Temperature 48 | . 48 . . Average Temperature 16 | . 16 . . Received Heat Transfer 198 | . 81 117 . Siege Activations . | . . . . Robots Corrupted . | . . . . Combat Hostiles . | . . . . Parts Fried 4 | . . 4 . Impact Corruptions . | . . . . Robots Melted . | . . . . Combat Hostiles . | . . . . Parts Melted . | . . . . Heat Transferred . | . . . . Parts Sabotaged . | . . . . Parts Stolen . | . . . . Parts Stripped . | . . . . Power Chain Reactions . | . . . . Alert | -11 -10 -10 -8 ------- Run | Yrd Mat Sub Mat Peak Influence 191 | . 191 . . Initial . | . . . . Average 42 | . 45 . . Maximum Alert Level . | . . . . Low Security (%) 100 | 100 100 . 100 Level 1 . | . . . . Level 2 . | . . . . Level 3 . | . . . . Level 4 . | . . . . Level 5 . | . . . . High Security . | . . . . Max Security . | . . . . Squads Dispatched 2 | . 2 . . Investigation 2 | . 2 . . Extermination . | . . . . Reinforcement . | . . . . Assault . | . . . . Garrison . | . . . . Intercept . | . . . . Searches Triggered . | . . . . Construction Impeded . | . . . . Haulers Reinforced . | . . . . Active Scanning Responses . | . . . . Cargo Convoy Interrupts . | . . . . Stealth | -11 -10 -10 -8 --------- Run | Yrd Mat Sub Mat Distress Signals 1 | . 1 . . Communications Jammed . | . . . . Distress Signals . | . . . . Times Spotted 24 | . 13 11 . Peak Tracking Total 4 | . 4 2 . Tactical Retreats 3 | . 2 1 . Traps | -11 -10 -10 -8 ------- Run | Yrd Mat Sub Mat Traps Triggered 3 | . 2 1 . Indirectly . | . . . . Trap Hack Attempts . | . . . . Triggered . | . . . . Disarmed . | . . . . Reprogrammed . | . . . . Reused . | . . . . Traps Extracted . | . . . . Installed . | . . . . Triggered . | . . . . Machines | -11 -10 -10 -8 ---------- Run | Yrd Mat Sub Mat Machines Disabled . | . . . . Max in Single Turn . | . . . . Machines Repaired . | . . . . Machines Dismantled . | . . . . Machines Sabotaged . | . . . . Overloaded Fab Kills . | . . . . Hacking | -11 -10 -10 -8 --------- Run | Yrd Mat Sub Mat Machines Accessed 6 | . 5 . 1 Terminals 5 | . 4 . 1 Fabricators . | . . . . Repair Stations . | . . . . Recycling Units 1 | . 1 . . Scanalyzers . | . . . . Garrison Access . | . . . . Total Hacks 12 | . 11 . 1 Successful 10 | . 9 . 1 Failed 2 | . 2 . . Catastrophic . | . . . . Database Lockouts . | . . . . Manual 9 | . 8 . 1 Terminals 11 | . 10 . 1 Fabricators . | . . . . Repair Stations . | . . . . Recycling Units 1 | . 1 . . Scanalyzers . | . . . . Garrison Access . | . . . . Terminal Hacks 9 | . 8 . 1 Part Schematic 1 | . 1 . . Robot Analysis 3 | . 3 . . Prototype ID Bank 1 | . 1 . . Branch Access Points 2 | . 1 . 1 Zone Layout 2 | . 2 . . Fabricator Hacks . | . . . . Repair Station Hacks . | . . . . Recycling Unit Hacks . | . . . . Scanalyzer . | . . . . Garrison Access Hacks . | . . . . Unauthorized Hacks 1 | . 1 . . Terminals . | . . . . Fabricators . | . . . . Repair Stations . | . . . . Recycling Units 1 | . 1 . . Tunnel 1 | . 1 . . Scanalyzers . | . . . . Garrison Access . | . . . . Data Cores Recovered . | . . . . Used . | . . . . Hacking Detections 3 | . 3 . . Full Trace Events . | . . . . Feedback Events . | . . . . Feedback Blocked . | . . . . Robot Schematics Acquired . | . . . . Robots Built . | . . . . Authchips . | . . . . Time . | . . . . Total Robot Build Rating . | . . . . Part Schematics Acquired 1 | . 1 . . Parts Built . | . . . . Authchips . | . . . . Time . | . . . . Total Part Build Rating . | . . . . Parts Repaired . | . . . . Time . | . . . . Parts Recycled . | . . . . Recycled Matter . | . . . . Retrieved Matter . | . . . . Retrieved Components . | . . . . Parts Scanalyzed . | . . . . Part Schematics Acquired . | . . . . Parts Damaged . | . . . . Bothacking | -11 -10 -10 -8 ------------ Run | Yrd Mat Sub Mat Used RIF Installer . | . . . . Robots Hacked . | . . . . Non-combat . | . . . . Combat . | . . . . Robot Hacks Applied . | . . . . Relay Couplers Released . | . . . . Fabnet Peak Effective % . | . . . . Robots Rewired . | . . . . Allies Hacked . | . . . . Hacks Repelled . | . . . . Allies | -11 -10 -10 -8 -------- Run | Yrd Mat Sub Mat Total Allies . | . . . . Largest Group . | . . . . Highest-Rated Group . | . . . . Highest-Rated Ally . | . . . . Total Orders . | . . . . Ally Attacks . | . . . . Total Damage . | . . . . Kills . | . . . . Allies Corrupted . | . . . . Allies Melted . | . . . . Intel | -11 -10 -10 -8 ------- Run | Yrd Mat Sub Mat Robot Analysis Total 3 | . 3 . . Derelict Logs Recovered . | . . . . Drone Launches . | . . . . Drone Recoveries . | . . . . Exploration | -11 -10 -10 -8 ------------- Run | Yrd Mat Sub Mat Turns Passed 3059 | 56 1857 1109 37 Spaces Moved 1365 | 42 492 806 25 Core 12 | 12 . . . Treads 452 | . 340 104 8 Legs 182 | 30 152 . . Wheels 719 | . . 702 17 Hover . | . . . . Flight . | . . . . Fastest Speed 50 | 50 120 105 110 Average Speed 127 | 100 147 116 126 Slowest Speed 190 | 120 190 160 160 Overloaded Moves . | . . . . Propulsion Burnouts . | . . . . Robots Hopped . | . . . . Cave-ins Triggered . | . . . . Exploration Rate (%) 34 | 3 72 59 4 Regions Visited 3 Branch Regions 1 Pre-discovered Areas 2 | . 1 1 . Known Exits Taken . | . . . . Unknown Exits Taken 3 | 1 1 1 . Scrap Searched 3 | . . 3 . Spaces Dug 6 | . . 6 . Terrain Destroyed 6 | . . 6 . Melee 6 | . . 6 . Projectile . | . . . . AOE . | . . . . Terrain Rammed . | . . . . Walls Destroyed . | . . . . Machines Disabled . | . . . . Actions | -11 -10 -10 -8 --------- Run | Yrd Mat Sub Mat Total 2588 | 53 1589 916 30 Wait 1078 | . 1052 26 . Move 1363 | 41 491 806 25 Hop . | . . . . Pick Up 27 | 6 8 11 2 Fast Attach 11 | 6 4 . 1 Attach 5 | . 1 2 2 Detach . | . . . . Swap 38 | . 3 35 . Drop 13 | . 9 4 . Fire 39 | . 20 19 . Melee 11 | . . 11 . Ram . | . . . . Kick . | . . . . Crush 3 | . 1 2 . Escape Stasis . | . . . . Rewire . | . . . . Trap . | . . . . Miscellaneous . | . . . . Route ------- -11/Scrapyard -10/Materials (discovered 3 exits: [*Mat] / *Min / [*Sub]) -10/Subcaves (discovered 2 exits: *Mat x2) -8/Materials History --------- Turn | Location | Event 10 | -11/Scrapyard | Discovered new exit (range 16) 57 | -11/Scrapyard | Entered Materials 224 | -10/Materials | Identified exit to Mines 267 | -10/Materials | Discovered new exit (range 11) 345 | -10/Materials | Build established: Mutant 1893 | -10/Materials | Discovered new exit (range 4) 1914 | -10/Materials | Entered Subcaves 1969 | -10/Subcaves | Core integrity fell below 50% 2019 | -10/Subcaves | Discovered new exit (range 9) 2119 | -10/Subcaves | Shifting Twisted Machinery released Sub. Laser 2124 | -10/Subcaves | Shifting Twisted Machinery released Sub. Monowheel 2270 | -10/Subcaves | Learned location of Zion (-7) 2270 | -10/Subcaves | Met a Zionite searching for "candidates" 2522 | -10/Subcaves | A swath of the cavern ceiling suddenly collapsed 2864 | -10/Subcaves | Shifting Twisted Machinery released Sub. Monowheel 2937 | -10/Subcaves | A swath of the cavern ceiling suddenly collapsed 2999 | -10/Subcaves | Discovered new exit (range 8) 3002 | -10/Subcaves | Core integrity fell below 20% 3023 | -10/Subcaves | Entered Materials 3023 | -8/Materials | Evolved 4 slots: Propulsion x2, Utility x2 3060 | -8/Materials | Self-destructed Last Messages --------------- 02912_ Acquired 36 matter. 02919_ FX-2P3(R) destroyed. 02922_ LL-B3R(O) collects matter. 02926_ Dropped Riot Gun. 02929_ Acquired Sub. Beam Cannon. A swath of the cavern ceiling suddenly collapses. 02992_ 4L-782(u) tweaks Twisted Machinery. 02999_ EXIT=FOUND 03020_ Slammed into Y-45 Defender. PARAMETERS=PROPULSION+2,UTILITY+2 LOCATION=UNKNOWN GOAL=ESCAPE 03035_ Acquired Lgt. Armor Plating. 03041_ Acquired Particle Charger. 03043_ Acquired Cooling System. 03060_ Connecting with Terminal... 03060_ Current location identified: Materials >>Access(Branch) No branch access points found. Map ----- +----------------------------------------------------+ | ?????????????????????????????????????????????????? | | ?????????????????????????????????????????????????? | | ?????????????????????????????????????????????????? | | ?????????????????????????????????????????????????? | | ?????????????????????????????????????????????????? | | ?????????????????????????????????????????????????? | | ?????????????????????????????????????????????????? | | ?????????????????????????????????????????????????? | | ?????????????????????????????????????????????????? | | ?????????????????????????????????????????????????? | | ?????????????????????????????????????????????????? | | ?????????????????????????????????????????????????? | | ?????????????????????????????????????????????????? | | ?????????????????????????????????????????????????? | | ?????????????? ??????????????????????????????? | | ?????????????? ??????????????????????????????? | | ?????????????? ??????????????????????????????? | | ?????????????? ??????????????????????????????? | | ??????????????# #??????????????????????????????? | | ??????????????# #??????????????????????????????? | | ??????????????# #??????????????????????????????? | | ??????????????+ #??????????????????????????????? | | ??????????????# #??????????????????????????????? | | ??????????????# ###########????????????????????? | | ??????????????# # T #????????????????????? | | ??????????????# # @ #????????????????????? | | ??????????????# # #????????????????????? | | ????########### # #????????????????????? | | ????# + + #????????????????????? | | ????# # # """ #????????????????????? | | ????# # # """ #????????????????????? | | ????# # # """ #????????????????????? | | ????# ###############????????????????????? | | ????# #??????????????????????????????????? | | ????# #??????????????????????????????????? | | ????# #??????????????????????????????????? | | ????###########??????????????????????????????????? | | ?????????????????????????????????????????????????? | | ?????????????????????????????????????????????????? | | ?????????????????????????????????????????????????? | | ?????????????????????????????????????????????????? | | ?????????????????????????????????????????????????? | | ?????????????????????????????????????????????????? | | ?????????????????????????????????????????????????? | | ?????????????????????????????????????????????????? | | | | | | | | | | | +----------------------------------------------------+ Best States ------------- Heat Dissipation 39 Energy Generation 15 Energy Capacity 250 Matter Stores 300 Matter Capacity 300 Sight Range 16 Terrain Scan Range 14 Terrain Scan Density 10 Armor Coverage 150 Core Shielding 20 Evasion (%) 55 Recoil Reduction 2 Item Schematics ----------------- Cargo Storage Unit | -10/Materials | Hacked Robot Schematics ------------------ None Fabricated ------------ Nothing Alien Tech Used ----------------- None Achievements -------------- None Challenges ------------ None Game ------ Seed MagneticSniperLegs Manual? 0 Play Time 00:18:34 Cumulative 268.9 hours Start 2024.05.01 @ 06:57:58 End 2024.05.01 @ 07:33:44 Sessions 1 Manual Loads 0 Difficulty Rogue Special Mode None Game No. 67 Rogue 67 Adventurer 0 Explorer 0 Win Type - Total 16 Types 8/3/3/1/1/0/0/0/0 Lore% 56 Gallery% 78 Achievement% 69 Wizard Run 0 Options --------- Layout 1 ASCII 0 Keyboard 0 Movement Numpad Keybinds 0 Fullscreen 1 Font 24/Smallcaps Map View 50x35 Zoom Use 3% Tactical HUD 1 Map Filters NONE Filters NONE Steam 1 RUN: 8471be4e-277c-4831-8173-576c94c147db